fUSD/lending_fUSD_20240814
["ID","MTS","AMOUNT","RATE_DAILY","PERIOD"]
[334853073,1723609842427,-500.0,0.00014246,2]
[334853074,1723609842439,-594.03,0.00014246,2]
[334853075,1723609842450,-2129.2,0.00014246,2]
[334853076,1723609842461,-500.0,0.00014246,2]
[334853077,1723609842472,-500.0,0.00014246,2]
[334853078,1723609842483,-914.03,0.00014246,2]
[334853079,1723609842492,-500.0,0.00014246,2]
[334853080,1723609842502,-500.0,0.00014246,2]
[334853081,1723609842514,-500.0,0.00014246,2]
[334853082,1723609842524,-1713.7,0.00014246,2]
[334853083,1723609842536,-1361.46,0.00014246,2]
[334853084,1723609842547,-278.28271297,0.00014246,2]
[334853085,1723609842558,-546.87,0.00014246,2]
[334853086,1723609842569,-1866.29,0.00014246,2]
[334853087,1723609842580,-589.26,0.00014246,2]
[334853088,1723609842591,-613.17,0.00014246,2]
[334853089,1723609842602,-500.0,0.00014246,2]
[334853090,1723609842614,-252.04916431,0.00014246,2]
[334853091,1723609842626,-2021.75,0.00014246,2]
[334853092,1723609842637,-500.0,0.00014246,2]
[334853093,1723609842649,-500.0,0.00014246,2]
[334853094,1723609842660,-522.45,0.00014246,2]
[334853095,1723609842670,-1137.56,0.00014246,2]
[334853096,1723609842680,-500.0,0.00014246,2]
[334853097,1723609842690,-500.0,0.00014246,2]
[334853098,1723609842701,-500.0,0.00014246,2]
[334853099,1723609842711,-500.0,0.00014246,2]
[334853100,1723609842723,-500.0,0.00014246,2]
[334853101,1723609842735,-1319.16,0.00014246,2]
[334853102,1723609842746,-1427.54,0.00014246,2]
[334853103,1723609842758,-500.0,0.00014246,2]
[334853104,1723609842769,-500.0,0.00014246,2]
[334853105,1723609842778,-763.0,0.00014246,2]
[334853106,1723609842788,-1228.12,0.00014246,2]
[334853107,1723609842800,-500.0,0.00014246,2]
[334853108,1723609842811,-716.55,0.00014246,2]
[334853109,1723609842822,-500.0,0.00014246,2]
[334853110,1723609842834,-500.0,0.00014246,2]
[334853111,1723609842845,-801.08,0.00014246,2]
[334853112,1723609842855,-952.82,0.00014246,2]
[334853113,1723609842865,-500.0,0.00014246,2]
[334853114,1723609842876,-500.0,0.00014246,2]
[334853115,1723609842886,-500.0,0.00014246,2]
[334853116,1723609842897,-500.0,0.00014246,2]
[334853117,1723609842908,-500.0,0.00014246,2]
[334853118,1723609842918,-567.1,0.00014246,2]
[334853119,1723609842929,-727.51,0.00014246,2]
[334853120,1723609842939,-500.0,0.00014246,2]
[334853121,1723609842950,-500.0,0.00014246,2]
[334853122,1723609842960,-500.0,0.00014246,2]
[334853123,1723609842970,-500.0,0.00014246,2]
[334853124,1723609842981,-707.49,0.00014246,2]
[334853125,1723609842995,-930.55,0.00014246,2]
[334853126,1723609843006,-500.0,0.00014246,2]
[334853127,1723609843017,-500.0,0.00014246,2]
[334853128,1723609843027,-660.45,0.00014246,2]
[334853129,1723609843040,-500.0,0.00014246,2]
[334853131,1723609843051,-500.0,0.00014246,2]
[334853133,1723609843062,-500.0,0.00014246,2]
[334853135,1723609843074,-1078.02,0.00014246,2]
[334853138,1723609843084,-1088.19,0.00014246,2]
[334853141,1723609843095,-500.0,0.00014246,2]
[334853145,1723609843105,-500.0,0.00014246,2]
[334853148,1723609843116,-374.84743973,0.00014246,2]
[334853152,1723609843126,-500.0,0.00014246,2]
[334853155,1723609843136,-500.0,0.00014246,2]
[334853158,1723609843149,-759.3,0.00014246,2]
[334853163,1723609843166,-1530.37,0.00014246,2]
[334853166,1723609843176,-266.63309314,0.00014246,2]
[334853169,1723609843186,-889.18,0.00014246,2]
[334853171,1723609843196,-934.11,0.00014246,2]
[334853173,1723609843206,-500.0,0.00014246,2]
[334853176,1723609843216,-500.0,0.00014246,2]
[334853178,1723609843227,-1039.28,0.00014246,2]
[334853181,1723609843237,-1121.46,0.00014246,2]
[334853185,1723609843248,-500.0,0.00014246,2]
[334853188,1723609843259,-512.89,0.00014246,2]
[334853191,1723609843270,-500.0,0.00014246,2]
[334853194,1723609843282,-1333.72,0.00014246,2]
[334853198,1723609843293,-500.0,0.00014246,2]
[334853200,1723609843303,-500.0,0.00014246,2]
[334853202,1723609843313,-500.0,0.00014246,2]
[334853204,1723609843324,-1259.4,0.00014246,2]
[334853206,1723609843334,-1236.44,0.00014246,2]
[334853208,1723609843344,-500.0,0.00014246,2]
[334853210,1723609843354,-500.0,0.00014246,2]
[334853212,1723609843364,-586.02,0.00014246,2]
[334853214,1723609843374,-500.0,0.00014246,2]
[334853216,1723609843384,-1094.67,0.00014246,2]
[334853219,1723609843396,-500.0,0.00014246,2]
[334853220,1723609843407,-500.0,0.00014246,2]
[334853222,1723609843417,-572.66,0.00014246,2]
[334853224,1723609843427,-500.0,0.00014246,2]
[334853226,1723609843437,-899.03,0.00014246,2]
[334853228,1723609843447,-664.92,0.00014246,2]
[334853230,1723609843457,-756.4,0.00014246,2]
[334853232,1723609843467,-500.0,0.00014246,2]
[334853234,1723609843477,-500.0,0.00014246,2]
[334853236,1723609843487,-500.0,0.00014246,2]
[334853238,1723609843498,-1704.02,0.00014246,2]
[334853240,1723609843508,-534.59,0.00014246,2]
[334853242,1723609843518,-502.50648202,0.00014246,2]
[334853244,1723609843529,-602.19,0.00014246,2]
[334853246,1723609843539,-478.81111197,0.00014246,2]
[334853248,1723609843549,-500.0,0.00014246,2]
[334853250,1723609843558,-549.62,0.00014246,2]
[334853252,1723609843568,-554.55,0.00014246,2]
[334853253,1723609843578,-500.0,0.00014246,2]
[334853254,1723609843588,-633.91,0.00014246,2]
[334853255,1723609843598,-1088.07,0.00014246,2]
[334853256,1723609843608,-500.0,0.00014246,2]
[334853257,1723609843618,-500.0,0.00014246,2]
[334853258,1723609843628,-1076.76,0.00014246,2]
[334853259,1723609843640,-500.0,0.00014246,2]
[334853260,1723609843650,-642.2,0.00014246,2]
[334853261,1723609843661,-1310.19,0.00014246,2]
[334853262,1723609843671,-7376.68,0.00014246,2]
[334853263,1723609843682,-500.0,0.00014246,2]
[334853264,1723609843692,-600.13,0.00014246,2]
[334853265,1723609843703,-500.0,0.00014246,2]
[334853266,1723609843713,-2366.93,0.00014246,2]
[334853267,1723609843724,-884.91,0.00014246,2]
[334853268,1723609843736,-500.0,0.00014246,2]
[334853269,1723609843747,-500.0,0.00014246,2]
[334853270,1723609843758,-500.0,0.00014246,2]
[334853271,1723609843769,-626.80991476,0.00014246,2]
[334853272,1723609843779,-432.74828024,0.00014246,2]
[334853273,1723609843789,-989.3,0.00014246,2]
[334853274,1723609843799,-500.0,0.00014246,2]
[334853275,1723609843810,-4480.77,0.00014246,2]
[334853276,1723609843821,-978.57,0.00014246,2]
[334853277,1723609843831,-624.47,0.00014246,2]
[334853278,1723609843841,-500.0,0.00014246,2]
[334853279,1723609843851,-588.4,0.00014246,2]
[334853280,1723609843861,-870.91,0.00014246,2]
[334853282,1723609843871,-7603.03,0.00014246,2]
[334853283,1723609843881,-1387.64,0.00014246,2]
[334853284,1723609843892,-933.77,0.00014246,2]
[334853285,1723609843903,-500.0,0.00014246,2]
[334853286,1723609843914,-1213.63,0.00014246,2]
[334853287,1723609843924,-500.0,0.00014246,2]
[334853288,1723609843935,-34383.11,0.00014246,2]
[334853289,1723609843945,-1373.06,0.00014246,2]
[334853290,1723609843956,-500.0,0.00014246,2]
[334853291,1723609843966,-671.92,0.00014246,2]
[334853292,1723609843976,-670.51,0.00014246,2]
[334853293,1723609843988,-593.97,0.00014246,2]
[334853294,1723609843999,-500.0,0.00014246,2]
[334853295,1723609844010,-2281.42,0.00014246,2]
[334853296,1723609844020,-500.0,0.00014246,2]
[334853297,1723609844031,-500.0,0.00014246,2]
[334853298,1723609844041,-500.0,0.00014246,2]
[334853299,1723609844051,-643.43,0.00014246,2]
[334853300,1723609844061,-500.0,0.00014246,2]
[334853301,1723609844076,-1248.5,0.00014246,2]
[334853302,1723609844088,-518.47,0.00014246,2]
[334853303,1723609844098,-500.0,0.00014246,2]
[334853304,1723609844109,-1370.1,0.00014246,2]
[334853305,1723609844120,-1086.21,0.00014246,2]
[334853306,1723609844130,-3534.93,0.00014246,2]
[334853307,1723609844141,-500.0,0.00014246,2]
[334853308,1723609844151,-1952.92,0.00014246,2]
[334853309,1723609844161,-500.0,0.00014246,2]
[334853310,1723609844172,-1576.63,0.00014246,2]
[334853311,1723609844182,-500.0,0.00014246,2]
[334853312,1723609844192,-500.0,0.00014246,2]
[334853313,1723609844203,-910.69,0.00014246,2]
[334853314,1723609844213,-539.62,0.00014246,2]
[334853315,1723609844224,-1851.14,0.00014246,2]
[334853316,1723609844234,-860.94,0.00014246,2]
[334853317,1723609844245,-500.0,0.00014246,2]
[334853318,1723609844254,-500.0,0.00014246,2]
[334853319,1723609844264,-11477.37,0.00014246,2]
[334853320,1723609844275,-500.0,0.00014246,2]
[334853321,1723609844285,-500.0,0.00014246,2]
[334853322,1723609844295,-500.0,0.00014246,2]
[334853323,1723609844306,-500.0,0.00014246,2]
[334853324,1723609844316,-1281.62,0.00014246,2]
[334853325,1723609844325,-506.42,0.00014246,2]
[334853326,1723609844335,-500.0,0.00014246,2]
[334853327,1723609844345,-940.92,0.00014246,2]
[334853328,1723609844356,-500.0,0.00014246,2]
[334853329,1723609844366,-1472.9,0.00014246,2]
[334853330,1723609844377,-627.23,0.00014246,2]
[334853331,1723609844387,-500.0,0.00014246,2]
[334853332,1723609844397,-572.1,0.00014246,2]
[334853333,1723609844408,-542.26,0.00014246,2]
[334853334,1723609844418,-529.63234408,0.00014246,2]
[334853335,1723609844429,-3046.11,0.00014246,2]
[334853336,1723609844439,-500.0,0.00014246,2]
[334853337,1723609844449,-150.93367813,0.00014246,2]
[334853338,1723609844459,-500.0,0.00014246,2]
[334853339,1723609844470,-703.44,0.00014246,2]
[334853340,1723609844480,-1526.23,0.00014246,2]
[334853341,1723609844490,-625.03,0.00014246,2]
[334853342,1723609844500,-661.53,0.00014246,2]
[334853343,1723609844511,-1572.44,0.00014246,2]
[334853344,1723609844520,-1259.91,0.00014246,2]
[334853345,1723609844530,-999.55,0.00014246,2]
[334853346,1723609844540,-500.0,0.00014246,2]
[334853347,1723609844550,-809.75,0.00014246,2]
[334853348,1723609844560,-500.0,0.00014246,2]
[334853349,1723609844570,-500.0,0.00014246,2]
[334853350,1723609844580,-2268.61,0.00014246,2]
[334853351,1723609844591,-1125.39,0.00014246,2]
[334853352,1723609844601,-779.17,0.00014246,2]
[334853353,1723609844611,-1486.32,0.00014246,2]
[334853354,1723609844622,-731.78,0.00014246,2]
[334853355,1723609844632,-383.4613435,0.00014246,2]
[334853356,1723609844644,-1470.1,0.00014246,2]
[334853357,1723609844655,-896.11,0.00014246,2]
[334853358,1723609844666,-681.82,0.00014246,2]
[334853359,1723609844676,-1454.11,0.00014246,2]
[334853360,1723609844686,-1104.05,0.00014246,2]
[334853361,1723609844697,-2169.37,0.00014246,2]
[334853362,1723609844707,-500.0,0.00014246,2]
[334853363,1723609844718,-10922.42,0.00014246,2]
[334853364,1723609844728,-500.0,0.00014246,2]
[334853365,1723609844739,-500.0,0.00014246,2]
[334853366,1723609844750,-500.0,0.00014246,2]
[334853367,1723609844760,-1282.27,0.00014246,2]
[334853368,1723609844771,-500.0,0.00014246,2]
[334853369,1723609844782,-6536.97,0.00014246,2]
[334853370,1723609844792,-500.0,0.00014246,2]
[334853371,1723609844802,-2669.17,0.00014246,2]
[334853372,1723609844813,-473.96130716,0.00014246,2]
[334853373,1723609844823,-1328.52,0.00014246,2]
[334853374,1723609844834,-500.0,0.00014246,2]
[334853375,1723609844844,-500.0,0.00014246,2]
[334853376,1723609844854,-9772.12,0.00014246,2]
[334853377,1723609845595,-3638.87,0.00014246,2]
[334853378,1723609845617,-1643.29,0.00014246,2]
[334853379,1723609845640,-500.0,0.00014246,2]
[334853380,1723609845649,-500.0,0.00014246,2]
[334853381,1723609845659,-756.9,0.00014246,2]
[334853382,1723609845668,-500.0,0.00014246,2]
[334853383,1723609845678,-510.29,0.00014246,2]
[334853384,1723609845687,-1412.99,0.00014246,2]
[334853385,1723609845697,-672.06,0.00014246,2]
[334853386,1723609845707,-500.0,0.00014246,2]
[334853387,1723609845717,-573.39,0.00014246,2]
[334853388,1723609845727,-1317.22,0.00014246,2]
[334853389,1723609845736,-500.0,0.00014246,2]
[334853390,1723609845747,-2594.57,0.00014246,2]
[334853391,1723609845756,-1170.34,0.00014246,2]
[334853392,1723609845766,-960.18,0.00014246,2]
[334853393,1723609845775,-2279.45,0.00014246,2]
[334853394,1723609845784,-500.0,0.00014246,2]
[334853395,1723609845794,-1430.72,0.00014246,2]
[334853396,1723609845803,-699.32,0.00014246,2]
[334853397,1723609845813,-400.0,0.00014246,2]
[334853398,1723609845823,-500.0,0.00014246,2]
[334853399,1723609845833,-479.01794209,0.00014246,2]
[334853400,1723609845843,-500.0,0.00014246,2]
[334853401,1723609845852,-2593.85,0.00014246,2]
[334853402,1723609845862,-709.11,0.00014246,2]
[334853403,1723609845871,-584.01,0.00014246,2]
[334853404,1723609845880,-2203.65,0.00014246,2]
[334853405,1723609845889,-500.0,0.00014246,2]
[334853406,1723609845899,-1289.07,0.00014246,2]
[334853407,1723609845909,-4744.17,0.00014246,2]
[334853408,1723609845918,-1545.87,0.00014246,2]
[334853409,1723609845928,-721.29,0.00014246,2]
[334853410,1723609845938,-693.69,0.00014246,2]
[334853411,1723609845947,-500.0,0.00014246,2]
[334853412,1723609845957,-500.0,0.00014246,2]
[334853413,1723609845966,-702.63,0.00014246,2]
[334853414,1723609845975,-268.0197458,0.00014246,2]
[334853415,1723609845987,-500.0,0.00014246,2]
[334853416,1723609845997,-500.0,0.00014246,2]
[334853417,1723609846005,-1337.5,0.00014246,2]
[334853418,1723609846015,-2072.36,0.00014246,2]
[334853419,1723609846025,-1595.04,0.00014246,2]
[334853420,1723609846035,-500.0,0.00014246,2]
[334853421,1723609846045,-632.26,0.00014246,2]
[334853422,1723609846054,-500.0,0.00014246,2]
[334853423,1723609846065,-934.24,0.00014246,2]
[334853424,1723609846074,-1847.69,0.00014246,2]
[334853425,1723609846084,-500.0,0.00014246,2]
[334853426,1723609846093,-921.25,0.00014246,2]
[334853427,1723609846102,-606.48,0.00014246,2]
[334853428,1723609846111,-1284.98,0.00014246,2]
[334853429,1723609846120,-500.0,0.00014246,2]
[334853430,1723609846129,-500.0,0.00014246,2]
[334853431,1723609846139,-500.0,0.00014246,2]
[334853432,1723609846148,-6567.88,0.00014246,2]
[334853433,1723609846157,-794.79,0.00014246,2]
[334853434,1723609846166,-1821.67,0.00014246,2]
[334853435,1723609846176,-958.01,0.00014246,2]
[334853436,1723609846185,-1300.27,0.00014246,2]
[334853437,1723609846195,-1529.8,0.00014246,2]
[334853438,1723609846204,-500.0,0.00014246,2]
[334853439,1723609846213,-500.0,0.00014246,2]
[334853440,1723609846223,-7894.91,0.00014246,2]
[334853441,1723609846232,-962.46,0.00014246,2]
[334853442,1723609846241,-500.0,0.00014246,2]
[334853443,1723609846250,-784.56,0.00014246,2]
[334853444,1723609846259,-500.0,0.00014246,2]
[334853445,1723609846269,-2122.48,0.00014246,2]
[334853446,1723609846278,-1436.52,0.00014246,2]
[334853447,1723609846287,-602.19,0.00014246,2]
[334853448,1723609846296,-500.0,0.00014246,2]
[334853449,1723609846305,-2443.79,0.00014246,2]
[334853451,1723609846314,-500.0,0.00014246,2]
[334853453,1723609846324,-1117.72,0.00014246,2]
[334853455,1723609846334,-1141.56,0.00014246,2]
[334853457,1723609846343,-1038.02,0.00014246,2]
[334853459,1723609846352,-500.0,0.00014246,2]
[334853461,1723609846362,-2826.18,0.00014246,2]
[334853463,1723609846371,-626.15,0.00014246,2]
[334853465,1723609846380,-1794.03,0.00014246,2]
[334853467,1723609846389,-1000.31,0.00014246,2]
[334853468,1723609846400,-789.7,0.00014246,2]
[334853470,1723609846410,-500.0,0.00014246,2]
[334853472,1723609846420,-1287.7,0.00014246,2]
[334853474,1723609846429,-500.0,0.00014246,2]
[334853476,1723609846439,-542.16,0.00014246,2]
[334853478,1723609846448,-824.39,0.00014246,2]
[334853480,1723609846458,-500.0,0.00014246,2]
[334853482,1723609846467,-500.0,0.00014246,2]
[334853483,1723609846475,-500.0,0.00014246,2]
[334853484,1723609846485,-500.0,0.00014246,2]
[334853485,1723609846494,-500.0,0.00014246,2]
[334853486,1723609846503,-1448.79,0.00014246,2]
[334853487,1723609846512,-500.0,0.00014246,2]
[334853488,1723609846521,-500.0,0.00014246,2]
[334853489,1723609846530,-650.93,0.00014246,2]
[334853490,1723609846540,-1750.64,0.00014246,2]
[334853491,1723609846549,-1144.6,0.00014246,2]
[334853492,1723609846558,-500.0,0.00014246,2]
[334853493,1723609846568,-500.0,0.00014246,2]
[334853494,1723609846577,-500.0,0.00014246,2]
[334853495,1723609846587,-500.0,0.00014246,2]
[334853496,1723609846596,-12775.62,0.00014246,2]
[334853497,1723609846606,-500.0,0.00014246,2]
[334853498,1723609846615,-3428.13,0.00014246,2]
[334853499,1723609846625,-1230.28,0.00014246,2]
[334853500,1723609846635,-500.0,0.00014246,2]
[334853501,1723609846645,-500.0,0.00014246,2]
[334853502,1723609846655,-1638.12,0.00014246,2]
[334853503,1723609846664,-500.0,0.00014246,2]
[334853504,1723609846674,-500.0,0.00014246,2]
[334853505,1723609846683,-500.0,0.00014246,2]
[334853506,1723609846693,-500.0,0.00014246,2]
[334853507,1723609846702,-2040.24,0.00014246,2]
[334853508,1723609846712,-1515.13,0.00014246,2]
[334853509,1723609846721,-683.16,0.00014246,2]
[334853510,1723609846731,-1072.71,0.00014246,2]
[334853511,1723609846740,-3552.15,0.00014246,2]
[334853512,1723609846749,-500.0,0.00014246,2]
[334853513,1723609846759,-1939.38,0.00014246,2]
[334853514,1723609846769,-500.0,0.00014246,2]
[334853515,1723609846779,-567.28,0.00014246,2]
[334853516,1723609846789,-1452.68,0.00014246,2]
[334853517,1723609846798,-500.0,0.00014246,2]
[334853518,1723609846808,-500.0,0.00014246,2]
[334853519,1723609846818,-500.0,0.00014246,2]
[334853520,1723609846828,-1066.26,0.00014246,2]
[334853522,1723609846838,-500.0,0.00014246,2]
[334853524,1723609846848,-2040.77,0.00014246,2]
[334853526,1723609846857,-524.59,0.00014246,2]
[334853528,1723609846867,-500.0,0.00014246,2]
[334853529,1723609846876,-500.0,0.00014246,2]
[334853530,1723609846886,-751.22,0.00014246,2]
[334853531,1723609846898,-500.0,0.00014246,2]
[334853532,1723609846908,-500.0,0.00014246,2]
[334853533,1723609846918,-500.0,0.00014246,2]
[334853534,1723609846928,-1978.27,0.00014246,2]
[334853535,1723609846938,-1013.74,0.00014246,2]
[334853536,1723609846947,-500.0,0.00014246,2]
[334853537,1723609846957,-500.0,0.00014246,2]
[334853538,1723609846967,-3363.31,0.00014246,2]
[334853539,1723609846977,-547.18,0.00014246,2]
[334853540,1723609846990,-500.0,0.00014246,2]
[334853541,1723609847000,-500.0,0.00014246,2]
[334853542,1723609847010,-3032.15,0.00014246,2]
[334853543,1723609847021,-500.0,0.00014246,2]
[334853544,1723609847031,-267.4309881,0.00014246,2]
[334853545,1723609847040,-8625.96,0.00014246,2]
[334853546,1723609847050,-1762.22,0.00014246,2]
[334853547,1723609847060,-503.24186936,0.00014246,2]
[334853548,1723609847070,-500.0,0.00014246,2]
[334853549,1723609847080,-1353.62,0.00014246,2]
[334853550,1723609847090,-1289.65,0.00014246,2]
[334853551,1723609847100,-500.0,0.00014246,2]
[334853552,1723609847110,-500.0,0.00014246,2]
[334853553,1723609847119,-893.73,0.00014246,2]
[334853554,1723609847128,-500.0,0.00014246,2]
[334853555,1723609847139,-500.0,0.00014246,2]
[334853556,1723609847149,-500.0,0.00014246,2]
[334853557,1723609847159,-500.0,0.00014246,2]
[334853558,1723609847169,-500.0,0.00014246,2]
[334853559,1723609847179,-2410.79,0.00014246,2]
[334853560,1723609847188,-500.0,0.00014246,2]
[334853561,1723609847198,-1137.78,0.00014246,2]
[334853562,1723609847208,-500.0,0.00014246,2]
[334853563,1723609847217,-684.86,0.00014246,2]
[334853564,1723609847227,-504.95,0.00014246,2]
[334853565,1723609847237,-806.17,0.00014246,2]
[334853566,1723609847247,-175.02934626,0.00014246,2]
[334853567,1723609847256,-859.31,0.00014246,2]
[334853568,1723609847265,-332.21808893,0.00014246,2]
[334853569,1723609847275,-3271.69,0.00014246,2]
[334853570,1723609847284,-500.0,0.00014246,2]
[334853571,1723609847295,-500.0,0.00014246,2]
[334853572,1723609847305,-727.71,0.00014246,2]
[334853573,1723609847314,-500.0,0.00014246,2]
[334853574,1723609847324,-500.0,0.00014246,2]
[334853575,1723609847340,-500.0,0.00014246,2]
[334853576,1723609847350,-500.0,0.00014246,2]
[334853577,1723609847360,-528.47,0.00014246,2]
[334853578,1723609847371,-1104.85,0.00014246,2]
[334853579,1723609847381,-500.0,0.00014246,2]
[334853580,1723609847390,-499.99,0.00014261,2]
[334853581,1723609847401,-535.86025092,0.00014261,10]
[334853582,1723609847411,-250.0,0.00014461,2]
[334853583,1723609847422,-7198.21,0.00014509,2]
[334853584,1723609847432,-1410.06,0.00014509,2]
[334853585,1723609847443,-625.36,0.00014509,2]
[334853586,1723609847452,-500.0,0.00014509,2]
[334853587,1723609847462,-920.35,0.00014509,2]
[334853588,1723609847472,-1055.09,0.00014509,2]
[334853589,1723609847483,-1754.45,0.00014509,2]
[334853590,1723609847494,-4482.96,0.00014509,2]
[334853591,1723609847504,-500.0,0.00014509,2]
[334853592,1723609847515,-1145.05,0.00014509,2]
[334853593,1723609847525,-500.0,0.00014509,2]
[334853594,1723609847535,-1316.41,0.00014509,2]
[334853595,1723609847545,-1055.66,0.00014509,2]
[334853596,1723609847554,-500.0,0.00014509,2]
[334853597,1723609847565,-500.0,0.00014509,2]
[334853598,1723609847575,-648.21711,0.0001451,2]
[334853599,1723609847586,-4416.77,0.00014519,2]
[334853600,1723609847596,-2689.76,0.00014519,2]
[334853601,1723609847606,-2554.53,0.00014519,2]
[334853602,1723609847616,-2895.53,0.00014519,2]
[334853603,1723609847626,-1141.74,0.00014519,2]
[334853604,1723609847635,-521.36,0.00014519,2]
[334853605,1723609847647,-542.34,0.00014519,2]
[334853606,1723609847658,-58647.65,0.00014519,2]
[334853607,1723609847669,-1314.87,0.00014519,2]
[334853608,1723609847679,-7327.95,0.00014519,2]
[334853609,1723609847689,-253.750419,0.00014519,2]
[334853610,1723609847700,-167.401742,0.00014519,2]
[334853611,1723609847710,-3009.04,0.00014519,2]
[334853612,1723609847721,-156.685771,0.00014519,2]
[334853613,1723609847731,-2253.79,0.00014519,2]
[334853614,1723609847742,-3871.06,0.00014519,2]
[334853615,1723609847751,-500.0,0.00014519,2]
[334853616,1723609847762,-500.0,0.00014519,2]
[334853617,1723609847772,-1830.76,0.00014519,2]
[334853618,1723609847782,-857.71,0.00014519,2]
[334853619,1723609847792,-500.0,0.00014519,2]
[334853620,1723609847802,-2267.76,0.00014519,2]
[334853621,1723609847813,-2386.75,0.00014519,2]
[334853622,1723609847823,-2013.35,0.00014519,2]
[334853623,1723609847834,-500.0,0.00014519,2]
[334853624,1723609847844,-949.37,0.00014519,2]
[334853625,1723609847854,-500.0,0.00014519,2]
[334853626,1723609847965,-1349.62,0.00014519,2]
[334853627,1723609847975,-500.0,0.00014519,2]
[334853628,1723609847985,-3827.33,0.00014519,2]
[334853629,1723609847997,-2013.19,0.00014519,2]
[334853630,1723609848007,-1443.5,0.00014519,2]
[334853631,1723609848016,-949.47,0.00014519,2]
[334853632,1723609848026,-1517.58,0.00014519,2]
[334853633,1723609848037,-3668.14,0.00014519,2]
[334853634,1723609848047,-2773.87,0.00014519,2]
[334853635,1723609848056,-500.0,0.00014519,2]
[334853636,1723609848067,-687.08,0.00014519,2]
[334853637,1723609848077,-2141.81,0.00014519,2]
[334853638,1723609848086,-1091.39,0.00014519,2]
[334853639,1723609848095,-366.4101937,0.00014519,2]
[334853640,1723609848105,-3333.3,0.00014519,2]
[334853641,1723609848115,-1504.35,0.00014519,2]
[334853642,1723609848124,-1571.19,0.00014519,2]
[334853643,1723609848133,-1686.8,0.00014519,2]
[334853644,1723609848144,-2339.03,0.00014519,2]
[334853645,1723609848154,-2952.44,0.00014519,2]
[334853646,1723609848164,-2491.82,0.00014519,2]
[334853647,1723609848174,-6411.45,0.00014519,2]
[334853648,1723609848183,-1105.99,0.0001452,2]
[334853649,1723609848193,-921.57,0.0001452,2]
[334853650,1723609848202,-500.0,0.0001452,2]
[334853651,1723609848211,-500.0,0.0001452,2]
[334853652,1723609848221,-500.0,0.0001452,2]
[334853653,1723609848231,-500.0,0.0001452,2]
[334853654,1723609848245,-500.0,0.0001452,2]
[334853655,1723609848254,-799.62,0.0001452,2]
[334853656,1723609848263,-500.0,0.0001452,2]
[334853657,1723609848273,-500.0,0.0001452,2]
[334853658,1723609848283,-500.0,0.0001452,2]
[334853659,1723609848292,-500.0,0.0001452,2]
[334853660,1723609848302,-905.52,0.0001452,2]
[334853661,1723609848312,-500.0,0.0001452,2]
[334853662,1723609848321,-500.0,0.0001452,2]
[334853663,1723609848331,-500.0,0.0001452,2]
[334853664,1723609848340,-500.0,0.0001452,2]
[334853665,1723609848350,-500.0,0.0001452,2]
[334853666,1723609848359,-877.68,0.0001452,2]